Workbook

Sheet 邳州分公司
A1: 收料登记表填报 日期 2018 年 9 月 17 日 填表人 ：李凤
B2: 单位：江苏大力神管桩有限公司
A3: 序号 | B3: 到厂时间 | C3: 送料人相关信息 | H3: 物品相关信息（参数指标等） | T3: 结算信息 | W3: 检验员 | X3: 过磅员 | Y3: 备注
B4: 时 分 | C4: 车号 | D4: 车主姓名 （客户） | E4: 司机姓名 | F4: 司机手机号 | G4: 所属车队 | H4: 入库单号 | I4: 品名 | J4: 规格 | K4: 毛重t | L4: 皮重t | M4: 净重t | N4: 含水率% | O4: 含泥量% | P4: 细度模数 | Q4: 级配区/颗粒级配 | R4: 压碎值% | S4: 扣杂质t | T4: 结算重量 | U4: 单价/元 | V4: 金额/元
A5: 1 | B5: 13:14:00 | C5: 鲁Q581A2 | D5: 戴浩 | E5: 高坡 | F5: 18061117857 | G5: 孙燕昭 | H5: WIN0047710 | I5: 石子 | J5: 1-2# | K5: 118.14 | L5: 27.72 | M5: =K5-L5 -> 90.42 | Q5: 良好 | R5: 8 | S5: 0.52 | T5: =M5-S5 -> 89.9 | U5: 107 | V5: =T5*U5 -> 9619.3 | W5: 杨家辉 | X5: 杜娥娥
A6: 2 | B6: 13:18:00 | C6: 苏CR8699 | D6: 戴浩 | E6: 汤计亮 | F6: 13914860988 | G6: 孙燕昭 | H6: WIN0047710 | I6: 石子 | J6: 1-2# | K6: 93.96 | L6: 23.1 | M6: 70.86 | Q6: 良好 | R6: 8 | S6: 0.56 | T6: 70.3 | U6: 107 | V6: 7522.1 | W6: 杨家辉 | X6: 杜娥娥
A7: 3 | B7: 13:22:00 | C7: 苏CV8699 | D7: 戴浩 | E7: 李如海 | F7: 15852062775 | G7: 孙燕昭 | H7: WIN0047710 | I7: 石子 | J7: 1-2# | K7: 94.74 | L7: 22.76 | M7: 71.98 | Q7: 良好 | R7: 8 | S7: 0.58 | T7: 71.4 | U7: 107 | V7: 7639.8 | W7: 杨家辉 | X7: 杜娥娥
A8: 4 | B8: 15:05:00 | C8: 鲁Q587CW | D8: 冯勇胜 | E8: 曹善龙 | F8: 15052055477 | G8: 孙燕昭 | H8: 退货 | I8: 黄砂 | J8: 机制砂 | K8: 55.78 | M8: 55.78 | O8: 4.6 | T8: 55.78 | V8: 0 | W8: 陈金芳 | X8: 杜娥娥 | Y8: 含泥量超标，退货
A9: 5 | B9: 15:08:00 | C9: 鲁Q166BV | D9: 冯勇胜 | E9: 彭伟 | F9: 18875898827 | G9: 孙燕昭 | H9: 退货 | I9: 黄砂 | J9: 机制砂 | K9: 57.88 | M9: 57.88 | O9: 3.8 | T9: 57.88 | V9: 0 | W9: 陈金芳 | X9: 杜娥娥 | Y9: 含泥量超标，退货
A10: 6 | B10: 18:11:00 | C10: 鲁Q506BE | D10: 韩红 | E10: 刘振华 | F10: 15190721188 | G10: 孙燕昭 | H10: WIN0047710 | I10: 石子 | J10: 1-2# | K10: 71.38 | L10: 17.92 | M10: 53.46 | Q10: 良好 | R10: 8 | S10: 0.56 | T10: 52.9 | U10: 109 | V10: 5766.1 | W10: 杨家辉 | X10: 杜娥娥
A11: 7 | B11: 18:15:00 | C11: 鲁Q522BG | D11: 韩红 | E11: 郑嘉雷 | F11: 15862121767 | G11: 孙燕昭 | H11: WIN0047710 | I11: 石子 | J11: 1-2# | K11: 65.4 | L11: 20.16 | M11: 45.24 | Q11: 良好 | R11: 8 | S11: 0.54 | T11: 44.7 | U11: 109 | V11: 4872.3 | W11: 杨家辉 | X11: 杜娥娥
A12: 8 | B12: 18:19:00 | C12: 鲁Q187BP | D12: 韩红 | E12: 吴云龙 | F12: 15252222092 | G12: 孙燕昭 | H12: WIN0047710 | I12: 石子 | J12: 1-2# | K12: 69.36 | L12: 18.04 | M12: 51.32 | Q12: 良好 | R12: 8 | S12: 0.52 | T12: 50.8 | U12: 109 | V12: 5537.2 | W12: 杨家辉 | X12: 杜娥娥
A13: 9 | B13: 18:23:00 | C13: 鲁Q197BF | D13: 韩红 | E13: 沙良振 | F13: 13805221433 | G13: 孙燕昭 | H13: WIN0047710 | I13: 石子 | J13: 1-2# | K13: 68.68 | L13: 18.94 | M13: 49.74 | Q13: 良好 | R13: 8 | S13: 0.54 | T13: 49.2 | U13: 109 | V13: 5362.8 | W13: 杨家辉 | X13: 杜娥娥
A14: 10 | B14: 18:27:00 | C14: 鲁Q636CQ | D14: 韩红 | E14: 柳玉良 | F14: 13775857003 | G14: 孙燕昭 | H14: WIN0047710 | I14: 石子 | J14: 1-2# | K14: 68.52 | L14: 18.5 | M14: 50.02 | Q14: 良好 | R14: 8 | S14: 0.52 | T14: 49.5 | U14: 109 | V14: 5395.5 | W14: 杨家辉 | X14: 杜娥娥
A15: 11 | B15: 18:03:00 | C15: 鲁Q380BH | D15: 韩红 | E15: 杨发展 | F15: 15335127656 | G15: 孙燕昭 | H15: WIN0047710 | I15: 石子 | J15: 1-2# | K15: 68.54 | L15: 18.24 | M15: 50.3 | Q15: 良好 | R15: 8 | S15: 0.5 | T15: 49.8 | U15: 109 | V15: 5428.2 | W15: 杨家辉 | X15: 杜娥娥
A16: 12 | B16: 18:36:00 | C16: 鲁Q000AJ | D16: 王浩 | E16: 张宗军 | F16: 13815383708 | G16: 王星 | H16: WIN0047714 | I16: 石子 | J16: 1-2# | K16: 69.88 | L16: 19.86 | M16: 50.02 | Q16: 良好 | R16: 8 | S16: 0.52 | T16: 49.5 | U16: 109 | V16: 5395.5 | W16: 杨家辉 | X16: 杜娥娥
A17: 13 | B17: 18:04:00 | C17: 鲁Q956BY | D17: 王浩 | E17: 索兴旺 | F17: 13952122752 | G17: 王星 | H17: WIN0047714 | I17: 石子 | J17: 1-2# | K17: 67.64 | L17: 18.4 | M17: 49.24 | Q17: 良好 | R17: 8 | S17: 0.54 | T17: 48.7 | U17: 109 | V17: 5308.3 | W17: 杨家辉 | X17: 杜娥娥
A18: 14 | B18: 18:44:00 | C18: 苏CP8009 | D18: 王浩 | E18: 赵培迎 | F18: 13913482866 | G18: 王星 | H18: WIN0047714 | I18: 石子 | J18: 1-2# | K18: 64.88 | L18: 20.98 | M18: 43.9 | Q18: 良好 | R18: 7 | S18: 0.5 | T18: 43.4 | U18: 109 | V18: 4730.6 | W18: 杨家辉 | X18: 杜娥娥
A19: 15 | B19: 18:46:00 | C19: 鲁Q673AX | D19: 韩红 | E19: 冯英武 | F19: 15190795960 | G19: 孙燕昭 | H19: WIN0047710 | I19: 石子 | J19: 1-2# | K19: 70.26 | L19: 18.9 | M19: 51.36 | Q19: 良好 | R19: 8 | S19: 0.56 | T19: 50.8 | U19: 109 | V19: 5537.2 | W19: 杨家辉 | X19: 杜娥娥
A20: 16 | B20: 18:05:00 | C20: 苏C1T837 | D20: 韩红 | E20: 刘刚 | F20: 15951341341 | G20: 孙燕昭 | H20: WIN0047710 | I20: 石子 | J20: 1-2# | K20: 66.14 | L20: 20.04 | M20: 46.1 | Q20: 良好 | R20: 8 | S20: 0.5 | T20: 45.6 | U20: 109 | V20: 4970.4 | W20: 杨家辉 | X20: 杜娥娥
A21: 17 | B21: 19:18:00 | C21: 苏CV8699 | D21: 戴浩 | E21: 李如海 | F21: 15852062775 | G21: 孙燕昭 | H21: WIN0047710 | I21: 石子 | J21: 1-2# | K21: 96.68 | L21: 22.68 | M21: 74 | Q21: 良好 | R21: 8 | S21: 0.5 | T21: 73.5 | U21: 109 | V21: 8011.5 | W21: 杨家辉 | X21: 杜娥娥
A22: 18 | B22: 19:21:00 | C22: 苏CR8699 | D22: 戴浩 | E22: 汤计亮 | F22: 13914860988 | G22: 孙燕昭 | H22: WIN0047710 | I22: 石子 | J22: 1-2# | K22: 94.82 | L22: 23 | M22: 71.82 | Q22: 良好 | R22: 9 | S22: 0.52 | T22: 71.3 | U22: 109 | V22: 7771.7 | W22: 杨家辉 | X22: 杜娥娥
A23: 19 | B23: 19:33:00 | C23: 鲁Q581A2 | D23: 戴浩 | E23: 高坡 | F23: 18061117857 | G23: 孙燕昭 | H23: WIN0047710 | I23: 石子 | J23: 1-2# | K23: 110.52 | L23: 27.78 | M23: 82.74 | Q23: 良好 | R23: 9 | S23: 0.54 | T23: 82.2 | U23: 109 | V23: 8959.8 | W23: 杨家辉 | X23: 杜娥娥
A24: 20 | B24: 22:00:00 | C24: 苏CGV338 | D24: 汤继名 | E24: 孙合伟 | F24: 13676392600 | G24: 汤继名 | H24: WIN0047711 | I24: 石子 | J24: 1-2# | K24: 75.38 | L24: 21.52 | M24: 53.86 | Q24: 良好 | R24: 8 | S24: 0.56 | T24: 53.3 | U24: 109 | V24: 5809.7 | W24: 杨家辉 | X24: 杜娥娥
A25: 21 | B25: 22:09:00 | C25: 苏CGS000 | D25: 汤继名 | E25: 黄仁武 | F25: 15062093139 | G25: 汤继名 | H25: WIN0047711 | I25: 石子 | J25: 1-2# | K25: 70.62 | L25: 21.66 | M25: 48.96 | Q25: 良好 | R25: 8 | S25: 0.56 | T25: 48.4 | U25: 109 | V25: 5275.6 | W25: 杨家辉 | X25: 杜娥娥
A26: 22 | B26: 22:14:00 | C26: 苏C9T777 | D26: 刘战斗 | E26: 王振 | F26: 15298735000 | G26: 杨需 | H26: WIN0047712 | I26: 石子 | J26: 1-2# | K26: 63.58 | L26: 17.9 | M26: 45.68 | Q26: 良好 | R26: 7 | S26: 0.58 | T26: 45.1 | U26: 109 | V26: 4915.9 | W26: 杨家辉 | X26: 杜娥娥
A27: 23 | B27: 23:13:00 | C27: 苏CX8699 | D27: 戴浩 | E27: 冯士文 | F27: 15077802369 | G27: 孙燕昭 | H27: WIN0047710 | I27: 石子 | J27: 1-2# | K27: 96.38 | L27: 22.7 | M27: 73.68 | Q27: 良好 | R27: 7 | S27: 0.58 | T27: 73.1 | U27: 109 | V27: 7967.9 | W27: 杨家辉 | X27: 杜娥娥
A28: 24 | B28: 23:18:00 | C28: 鲁Q665AB | D28: 戴浩 | E28: 王建设 | F28: 18952279689 | G28: 孙燕昭 | H28: WIN0047710 | I28: 石子 | J28: 1-2# | K28: 107.82 | L28: 29.78 | M28: 78.04 | Q28: 良好 | R28: 8 | S28: 0.54 | T28: 77.5 | U28: 109 | V28: 8447.5 | W28: 杨家辉 | X28: 杜娥娥
A29: 25 | B29: 00:05:00 | C29: 苏CV8699 | D29: 戴浩 | E29: 李如海 | F29: 15852062775 | G29: 孙燕昭 | H29: WIN0047710 | I29: 石子 | J29: 1-2# | K29: 99.6 | L29: 22.86 | M29: 76.74 | Q29: 良好 | R29: 7 | S29: 0.54 | T29: 76.2 | U29: 109 | V29: 8305.8 | W29: 杨家辉 | X29: 杜娥娥
A30: 26 | B30: 00:53:00 | C30: 苏CR8699 | D30: 戴浩 | E30: 汤计亮 | F30: 13914860988 | G30: 孙燕昭 | H30: WIN0047710 | I30: 石子 | J30: 1-2# | K30: 95.74 | L30: 23.12 | M30: 72.62 | Q30: 良好 | R30: 8 | S30: 0.52 | T30: 72.1 | U30: 109 | V30: 7858.9 | W30: 杨家辉 | X30: 杜娥娥
A31: 27 | B31: 00:56:00 | C31: 苏CV8699 | D31: 戴浩 | E31: 李如海 | F31: 15852062775 | G31: 孙燕昭 | H31: WIN0047710 | I31: 石子 | J31: 1-2# | K31: 90.56 | L31: 23.8 | M31: 66.76 | Q31: 良好 | R31: 8 | S31: 0.56 | T31: 66.2 | U31: 109 | V31: 7215.8 | W31: 杨家辉 | X31: 杜娥娥
A32: 28 | B32: 01:01:00 | C32: 鲁Q188BD | D32: 韩红 | E32: 谭长来 | F32: 15852103716 | G32: 孙燕昭 | H32: WIN0047710 | I32: 石子 | J32: 1-2# | K32: 71.08 | L32: 18.64 | M32: 52.44 | Q32: 良好 | R32: 8 | S32: 0.54 | T32: 51.9 | U32: 109 | V32: 5657.1 | W32: 杨家辉 | X32: 杜娥娥
A33: 29 | B33: 01:06:00 | C33: 鲁Q581A2 | D33: 戴浩 | E33: 高坡 | F33: 18061117857 | G33: 孙燕昭 | H33: WIN0047710 | I33: 石子 | J33: 1-2# | K33: 111.88 | L33: 27.82 | M33: 84.06 | Q33: 良好 | R33: 8 | S33: 0.56 | T33: 83.5 | U33: 109 | V33: 9101.5 | W33: 杨家辉 | X33: 杜娥娥
A34: 30 | B34: 01:53:00 | C34: 鲁Q197BF | D34: 韩红 | E34: 沙良振 | F34: 13805221433 | G34: 孙燕昭 | H34: WIN0047710 | I34: 石子 | J34: 1-2# | K34: 70.36 | L34: 18.18 | M34: 52.18 | Q34: 良好 | R34: 8 | S34: 0.58 | T34: 51.6 | U34: 109 | V34: 5624.4 | W34: 杨家辉 | X34: 杜娥娥
A35: 31 | B35: 01:56:00 | C35: 鲁Q673AX | D35: 韩红 | E35: 冯英武 | F35: 15190795960 | G35: 孙燕昭 | H35: WIN0047710 | I35: 石子 | J35: 1-2# | K35: 66.68 | L35: 18.42 | M35: 48.26 | Q35: 良好 | R35: 8 | S35: 0.56 | T35: 47.7 | U35: 109 | V35: 5199.3 | W35: 杨家辉 | X35: 杜娥娥
A36: 32 | B36: 01:59:00 | C36: 鲁Q522BG | D36: 韩红 | E36: 郑嘉雷 | F36: 15862121767 | G36: 孙燕昭 | H36: WIN0047710 | I36: 石子 | J36: 1-2# | K36: 66.74 | L36: 19.88 | M36: 46.86 | Q36: 良好 | R36: 8 | S36: 0.56 | T36: 46.3 | U36: 109 | V36: 5046.7 | W36: 杨家辉 | X36: 杜娥娥
A37: 33 | B37: 02:02:00 | C37: 鲁Q636CQ | D37: 韩红 | E37: 柳玉良 | F37: 13775857003 | G37: 孙燕昭 | H37: WIN0047710 | I37: 石子 | J37: 1-2# | K37: 68.82 | L37: 17.8 | M37: 51.02 | Q37: 良好 | R37: 8 | S37: 0.72 | T37: 50.3 | U37: 109 | V37: 5482.7 | W37: 杨家辉 | X37: 杜娥娥
A38: 34 | B38: 02:06:00 | C38: 鲁Q506BE | D38: 韩红 | E38: 刘振华 | F38: 15190721188 | G38: 孙燕昭 | H38: WIN0047710 | I38: 石子 | J38: 1-2# | K38: 72.7 | L38: 18.12 | M38: 54.58 | Q38: 良好 | R38: 7 | S38: 0.58 | T38: 54 | U38: 109 | V38: 5886 | W38: 杨家辉 | X38: 杜娥娥
A39: 35 | B39: 02:12:00 | C39: 鲁Q380BH | D39: 韩红 | E39: 杨发展 | F39: 15335127656 | G39: 孙燕昭 | H39: WIN0047710 | I39: 石子 | J39: 1-2# | K39: 70.22 | L39: 18.24 | M39: 51.98 | Q39: 良好 | R39: 7 | S39: 0.68 | T39: 51.3 | U39: 109 | V39: 5591.7 | W39: 杨家辉 | X39: 杜娥娥
A40: 36 | B40: 02:15:00 | C40: 鲁Q187BP | D40: 韩红 | E40: 吴云龙 | F40: 15252222092 | G40: 孙燕昭 | H40: WIN0047710 | I40: 石子 | J40: 1-2# | K40: 70.26 | L40: 17.98 | M40: 52.28 | Q40: 良好 | R40: 8 | S40: 0.58 | T40: 51.7 | U40: 109 | V40: 5635.3 | W40: 杨家辉 | X40: 杜娥娥
A41: 37 | B41: 02:19:00 | C41: 鲁Q221CK | D41: 宋栋梁 | E41: 李亮 | F41: 13355010691 | G41: 丁宝利 | H41: WIN0047709 | I41: 石子 | J41: 1-2# | K41: 58.52 | L41: 17.68 | M41: 40.84 | Q41: 良好 | R41: 8 | S41: 0.54 | T41: 40.3 | U41: 109 | V41: 4392.7 | W41: 杨家辉 | X41: 杜娥娥
A42: 38 | B42: 02:23:00 | C42: 苏C1T837 | D42: 韩红 | E42: 刘刚 | F42: 15951341341 | G42: 孙燕昭 | H42: WIN0047710 | I42: 石子 | J42: 1-2# | K42: 68.3 | L42: 20.02 | M42: 48.28 | Q42: 良好 | R42: 8 | S42: 0.58 | T42: 47.7 | U42: 109 | V42: 5199.3 | W42: 杨家辉 | X42: 杜娥娥
A43: 39 | B43: 02:27:00 | C43: 鲁Q932BR | D43: 丁宝利 | E43: 刘宗广 | F43: 15092868388 | G43: 丁宝利 | H43: WIN0047709 | I43: 石子 | J43: 1-2# | K43: 54.82 | L43: 17.16 | M43: 37.66 | Q43: 良好 | R43: 8 | S43: 0.56 | T43: 37.1 | U43: 109 | V43: 4043.9 | W43: 杨家辉 | X43: 杜娥娥
A44: 40 | B44: 02:03:00 | C44: 鲁Q933BU | D44: 丁宝利 | E44: 李忠海 | F44: 15969736500 | G44: 丁宝利 | H44: WIN0047709 | I44: 石子 | J44: 1-2# | K44: 56.36 | L44: 17.02 | M44: 39.34 | Q44: 良好 | R44: 8 | S44: 0.54 | T44: 38.8 | U44: 109 | V44: 4229.2 | W44: 杨家辉 | X44: 杜娥娥
A45: 41 | B45: 02:34:00 | C45: 鲁Q905BU | D45: 丁宝利 | E45: 吴绍帅 | F45: 15853859856 | G45: 丁宝利 | H45: WIN0047709 | I45: 石子 | J45: 1-2# | K45: 55.72 | L45: 17.34 | M45: 38.38 | Q45: 良好 | R45: 8 | S45: 0.58 | T45: 37.8 | U45: 109 | V45: 4120.2 | W45: 杨家辉 | X45: 杜娥娥
A46: 42 | B46: 02:39:00 | C46: 鲁Q973BR | D46: 丁宝利 | E46: 陈文化 | F46: 15376093576 | G46: 丁宝利 | H46: WIN0047709 | I46: 石子 | J46: 1-2# | K46: 57.28 | L46: 17.42 | M46: 39.86 | Q46: 良好 | R46: 8 | S46: 0.56 | T46: 39.3 | U46: 109 | V46: 4283.7 | W46: 杨家辉 | X46: 杜娥娥
A47: 43 | B47: 02:43:00 | C47: 鲁Q000AJ | D47: 王浩 | E47: 张宗军 | F47: 13815383708 | G47: 王星 | H47: WIN0047714 | I47: 石子 | J47: 1-2# | K47: 70.78 | L47: 20.26 | M47: 50.52 | Q47: 良好 | R47: 7 | S47: 0.52 | T47: 50 | U47: 109 | V47: 5450 | W47: 杨家辉 | X47: 杜娥娥
A48: 44 | B48: 02:46:00 | C48: 苏CP8009 | D48: 王浩 | E48: 赵培迎 | F48: 13913482866 | G48: 王星 | H48: WIN0047714 | I48: 石子 | J48: 1-2# | K48: 65.52 | L48: 20.72 | M48: 44.8 | Q48: 良好 | R48: 8 | S48: 0.5 | T48: 44.3 | U48: 109 | V48: 4828.7 | W48: 杨家辉 | X48: 杜娥娥
A49: 45 | B49: 03:01:00 | C49: 苏CGV338 | D49: 汤继名 | E49: 孙合伟 | F49: 13676392600 | G49: 汤继名 | H49: WIN0047711 | I49: 石子 | J49: 1-2# | K49: 75.08 | L49: 21.46 | M49: 53.62 | Q49: 良好 | R49: 8 | S49: 0.52 | T49: 53.1 | U49: 109 | V49: 5787.9 | W49: 杨家辉 | X49: 杜娥娥
A50: 46 | B50: 03:13:00 | C50: 苏CGS000 | D50: 汤继名 | E50: 黄仁武 | F50: 15062093139 | G50: 汤继名 | H50: WIN0047711 | I50: 石子 | J50: 1-2# | K50: 76.28 | L50: 21.98 | M50: 54.3 | Q50: 良好 | R50: 8 | S50: 0.5 | T50: 53.8 | U50: 109 | V50: 5864.2 | W50: 杨家辉 | X50: 杜娥娥
A51: 47 | B51: 03:32:00 | C51: 鲁Q290CP | D51: 王冲 | E51: 何杰 | F51: 15852107231 | G51: 刘清成 | H51: WIN0047713 | I51: 石子 | J51: 1-2# | K51: 65.98 | L51: 16.98 | M51: 49 | Q51: 良好 | R51: 8 | S51: 0.5 | T51: 48.5 | U51: 109 | V51: 5286.5 | W51: 杨家辉 | X51: 杜娥娥
A52: 48 | B52: 03:36:00 | C52: 鲁Q937AE | D52: 王小龙 | E52: 朱现中 | F52: 13914863557 | G52: 刘清成 | H52: WIN0047713 | I52: 石子 | J52: 1-2# | K52: 67.46 | L52: 19.98 | M52: 47.48 | Q52: 良好 | R52: 8 | S52: 0.58 | T52: 46.9 | U52: 109 | V52: 5112.1 | W52: 杨家辉 | X52: 杜娥娥
A53: 49 | B53: 04:09:00 | C53: 鲁Q56820 | D53: 王彬 | E53: 王彬 | F53: 15698273028 | G53: 孙燕昭 | H53: WIN0047710 | I53: 石子 | J53: 1-2# | K53: 63.36 | L53: 18.54 | M53: 44.82 | Q53: 良好 | R53: 8 | S53: 0.52 | T53: 44.3 | U53: 109 | V53: 4828.7 | W53: 杨家辉 | X53: 杜娥娥
A54: 50 | B54: 04:14:00 | C54: 鲁Q9539H | D54: 王健 | E54: 朱飞 | F54: 15006761159 | G54: 孙燕昭 | H54: WIN0047710 | I54: 石子 | J54: 1-2# | K54: 64.46 | L54: 18.1 | M54: 46.36 | Q54: 良好 | R54: 8 | S54: 0.56 | T54: 45.8 | U54: 109 | V54: 4992.2 | W54: 杨家辉 | X54: 杜娥娥
A55: 51 | B55: 04:43:00 | C55: 苏CR8699 | D55: 戴浩 | E55: 汤计亮 | F55: 13914860988 | G55: 孙燕昭 | H55: WIN0047710 | I55: 石子 | J55: 1-2# | K55: 95.1 | L55: 23.02 | M55: 72.08 | Q55: 良好 | R55: 8 | S55: 0.58 | T55: 71.5 | U55: 109 | V55: 7793.5 | W55: 杨家辉 | X55: 杜娥娥
A56: 52 | B56: 04:52:00 | C56: 苏CDU507 | D56: 赵伟 | E56: 王远军 | F56: 13921768728 | G56: 刘清成 | H56: WIN0047713 | I56: 石子 | J56: 1-2# | K56: 70.5 | L56: 19.16 | M56: 51.34 | Q56: 良好 | R56: 7 | S56: 0.54 | T56: 50.8 | U56: 109 | V56: 5537.2 | W56: 杨家辉 | X56: 杜娥娥
A57: 53 | B57: 04:56:00 | C57: 鲁Q090BW | D57: 戴浩 | E57: 吴海东 | F57: 13395298109 | G57: 孙燕昭 | H57: WIN0047710 | I57: 石子 | J57: 1-2# | K57: 96.18 | L57: 22.2 | M57: 73.98 | Q57: 良好 | R57: 8 | S57: 0.58 | T57: 73.4 | U57: 109 | V57: 8000.6 | W57: 杨家辉 | X57: 杜娥娥
A58: 54 | B58: 05:01:00 | C58: 苏CDV037 | D58: 赵伟 | E58: 陈宝中 | F58: 15162002195 | G58: 刘清成 | H58: WIN0047713 | I58: 石子 | J58: 1-2# | K58: 66.94 | L58: 19.34 | M58: 47.6 | Q58: 良好 | R58: 7 | S58: 0.5 | T58: 47.1 | U58: 109 | V58: 5133.9 | W58: 杨家辉 | X58: 杜娥娥
A59: 55 | B59: 05:05:00 | C59: 鲁Q188BD | D59: 韩红 | E59: 谭长来 | F59: 15852103716 | G59: 孙燕昭 | H59: WIN0047710 | I59: 石子 | J59: 1-2# | K59: 69.26 | L59: 18.48 | M59: 50.78 | Q59: 良好 | R59: 8 | S59: 0.58 | T59: 50.2 | U59: 109 | V59: 5471.8 | W59: 杨家辉 | X59: 杜娥娥
A60: 56 | B60: 05:09:00 | C60: 苏C1T861 | D60: 郑浩 | E60: 吴文珍 | F60: 13952270866 | G60: 孙燕昭 | H60: WIN0047710 | I60: 石子 | J60: 1-2# | K60: 93.36 | L60: 22 | M60: 71.36 | Q60: 良好 | R60: 8 | S60: 0.56 | T60: 70.8 | U60: 109 | V60: 7717.2 | W60: 杨家辉 | X60: 杜娥娥
A61: 57 | B61: 05:14:00 | C61: 苏CX8699 | D61: 戴浩 | E61: 冯士文 | F61: 15077802369 | G61: 孙燕昭 | H61: WIN0047710 | I61: 石子 | J61: 1-2# | K61: 95.14 | L61: 22.64 | M61: 72.5 | Q61: 良好 | R61: 8 | S61: 0.5 | T61: 72 | U61: 109 | V61: 7848 | W61: 杨家辉 | X61: 杜娥娥
A62: 58 | B62: 05:37:00 | C62: 鲁Q522BG | D62: 韩红 | E62: 郑嘉雷 | F62: 15862121767 | G62: 孙燕昭 | H62: WIN0047710 | I62: 石子 | J62: 1-2# | K62: 67.38 | L62: 19.76 | M62: 47.62 | Q62: 良好 | R62: 7 | S62: 0.52 | T62: 47.1 | U62: 109 | V62: 5133.9 | W62: 杨家辉 | X62: 杜娥娥
M63: 0 | T63: 0 | V63: 0
M64: 0 | T64: 0 | V64: 0
M65: 0 | T65: 0 | V65: 0
M66: 0 | T66: 0 | V66: 0
M67: 0 | T67: 0 | V67: 0
M68: 0 | T68: 0 | V68: 0
M69: =K69-L69 -> 0 | T69: =M69-S69 -> 0 | V69: =T69*U69 -> 0
V70: =SUM(V5:V69) -> 337905.5

Sheet 巨野分公司
A1: 收料登记表填报 日期 2018年 09 月 17 日 填表人 ：吴艳苓
B2: 单位：江苏大力神管桩有限公司巨野分公司
A3: 序号 | B3: 到厂时间 | C3: 送料人相关信息 | H3: 物品相关信息（参数指标等） | T3: 结算信息 | W3: 检验员 | X3: 过磅员
B4: 时 分 | C4: 车号 | D4: 车主姓名 | E4: 司机姓名 | F4: 司机手机号 | G4: 所属车队 | H4: 入库单号 | I4: 品名 | J4: 规格 | K4: 毛重 | L4: 皮重 | M4: 净重 | N4: 含水率% | O4: 含泥量% | P4: 细度模数 | Q4: 级配区 | R4: 压碎值 | S4: 扣杂质t | T4: 结算重量 | U4: 单价 | V4: 金额
A5: 1 | B5: 0.23 | C5: 鲁H96E65 | D5: 郭凯 | E5: 郭凯 | F5: 15064777797 | G5: 郑言克 | H5: 8887 | I5: 石子 | J5: PO42.5 | K5: 55.83 | L5: 16.75 | M5: =K5-L5 -> 39.08 | S5: 0.1T | T5: 38.9 | U5: 98 | V5: =T5*U5 -> 3812.2 | W5: 冯海英 | X5: 聂恒光
A6: 2 | B6: 0.56 | C6: 鲁HW6711 | D6: 王长青 | E6: 王长青 | F6: 18764788000 | G6: 郑言克 | H6: 8888 | I6: 石子 | J6: 1--2 | K6: 56.24 | L6: 15.98 | M6: 40.26 | S6: 0.1T | T6: 40.1 | U6: 98 | V6: 3929.8 | W6: 冯海英 | X6: 聂恒光
A7: 3 | B7: 0.59 | C7: 鲁HG6983 | D7: 田延卫 | E7: 田延卫 | F7: 13365378599 | G7: 郑言克 | H7: 8889 | I7: 石子 | J7: 1--2 | K7: 50.64 | L7: 15.29 | M7: 35.35 | S7: 0.1T | T7: 35.2 | U7: 98 | V7: 3449.6 | W7: 冯海英 | X7: 聂恒光
A8: 4 | B8: 1.01 | C8: 鲁HG2098 | D8: 李先锋 | E8: 李先锋 | F8: 15564748807 | G8: 郑言克 | H8: 8890 | I8: 石子 | J8: 1--2 | K8: 49.69 | L8: 14.82 | M8: 34.87 | S8: 0.1T | T8: 34.7 | U8: 98 | V8: 3400.6 | W8: 冯海英 | X8: 聂恒光
A9: 5 | B9: 6.50 | C9: 鲁H78E87 | D9: 张庆刚 | E9: 张庆刚 | F9: 17564290789 | G9: 郑言克 | H9: 8891 | I9: 石子 | J9: 1--2 | K9: 55.65 | L9: 15.55 | M9: 40.1 | S9: 0.1T | T9: 40 | U9: 98 | V9: 3920 | W9: 冯海英 | X9: 聂恒光
A10: 6 | B10: 6.52 | C10: 鲁HW6711 | D10: 王长青 | E10: 王长青 | F10: 18764788000 | G10: 郑言克 | H10: 8892 | I10: 石子 | J10: 1--2 | K10: 53.95 | L10: 16.2 | M10: 37.75 | S10: 0.1T | T10: 37.6 | U10: 98 | V10: 3684.8 | W10: 冯海英 | X10: 聂恒光
A11: 7 | B11: 6.55 | C11: 鲁H96E65 | D11: 郭凯 | E11: 郭凯 | F11: 15064777797 | G11: 郑言克 | H11: 8893 | I11: 石子 | J11: 1--2 | K11: 54.64 | L11: 16.6 | M11: 38.04 | S11: 0.1T | T11: 37.9 | U11: 98 | V11: 3714.2 | W11: 冯海英 | X11: 聂恒光
A12: 8 | B12: 7.42 | C12: 鲁HN8383 | D12: 谷传德 | E12: 谷传德 | F12: 13012622244 | G12: 嘉城运输 | H12: 8894 | I12: 钢棒 | J12: &9.0 | K12: 51.08 | L12: 15.22 | M12: 35.86 | T12: 35.86 | U12: 5350 | V12: 191851 | W12: 冯海英 | X12: 聂恒光
A13: 9 | B13: 10.15 | C13: 鲁H62D98 | D13: 徐连文 | E13: 徐连文 | F13: 13562773440 | G13: 郑言克 | H13: 8895 | I13: 石子 | J13: 1--2 | K13: 49.37 | L13: 15.79 | M13: 33.58 | S13: 0.1T | T13: 33.4 | U13: 98 | V13: 3273.2 | W13: 冯海英 | X13: 聂恒光
A14: 10 | B14: 10.18 | C14: 鲁H18B13 | D14: 刘逢 | E14: 刘逢 | F14: 15263761813 | G14: 郑言克 | H14: 8896 | I14: 石子 | J14: 1--2 | K14: 49 | L14: 16.32 | M14: 32.68 | S14: 0.1T | T14: 32.5 | U14: 98 | V14: 3185 | W14: 冯海英 | X14: 聂恒光
A15: 11 | B15: 13.35 | C15: 鲁H99D71 | D15: 师茂青 | E15: 师茂青 | F15: 17662204999 | G15: 千秋 | H15: 8897 | I15: 石子 | J15: 1--2 | K15: 48.78 | L15: 16.47 | M15: 32.31 | S15: 0.1T | T15: 32.2 | U15: 98 | V15: 3155.6 | W15: 冯海英 | X15: 聂恒光
A16: 12 | B16: 13.51 | C16: 鲁HW6792 | D16: 张卫东 | E16: 张卫东 | F16: 15063747588 | G16: 千秋 | H16: 8898 | I16: 石子 | J16: 1--2 | K16: 48.97 | L16: 16.5 | M16: 32.47 | S16: 0.1T | T16: 32.3 | U16: 98 | V16: 3165.4 | W16: 冯海英 | X16: 聂恒光
A17: 13 | B17: 13.51 | C17: 鲁HW5325 | D17: 张卫东 | E17: 许磊 | F17: 15660449166 | G17: 千秋 | H17: 8899 | I17: 石子 | J17: 1--2 | K17: 46.13 | L17: 15.59 | M17: 30.54 | S17: 0.1T | T17: 30.4 | U17: 98 | V17: 2979.2 | W17: 冯海英 | X17: 聂恒光
A18: 14 | B18: 13.56 | C18: 鲁HW6770 | D18: 张卫东 | E18: 杨雪亮 | F18: 13375470009 | G18: 千秋 | H18: 8900 | I18: 石子 | J18: 1--2 | K18: 49.38 | L18: 16.53 | M18: 32.85 | S18: 0.2T | T18: 32.6 | U18: 98 | V18: 3194.8 | W18: 冯海英 | X18: 聂恒光
A19: 15 | B19: 14.32 | C19: 鲁HW6711 | D19: 王长青 | E19: 王长青 | F19: 18764788000 | G19: 郑言克 | H19: 8901 | I19: 石子 | J19: 1--2 | K19: 46.18 | L19: 16.13 | M19: 30.05 | S19: 0.3T | T19: 29.7 | U19: 98 | V19: 2910.6 | W19: 冯海英 | X19: 聂恒光
A20: 16 | B20: 14.34 | C20: 鲁H96E65 | D20: 郭凯 | E20: 郭凯 | F20: 15064777797 | G20: 郑言克 | H20: 8902 | I20: 石子 | J20: 1--2 | K20: 49.62 | L20: 16.8 | M20: 32.82 | S20: 0.2T | T20: 32.6 | U20: 98 | V20: 3194.8 | W20: 冯海英 | X20: 聂恒光
A21: 17 | B21: 14.36 | C21: 鲁H78E87 | D21: 张庆刚 | E21: 张庆刚 | F21: 17564290789 | G21: 郑言克 | H21: 8903 | I21: 石子 | J21: 1--2 | K21: 48.98 | L21: 15.65 | M21: 33.33 | S21: 0.2T | T21: 33.1 | U21: 98 | V21: 3243.8 | W21: 冯海英 | X21: 聂恒光
A22: 18 | B22: 14.39 | C22: 鲁H50A10 | D22: 白斌 | E22: 白斌 | F22: 15106477718 | G22: 李广坤 | H22: 8904 | I22: 石子 | J22: 1--2 | K22: 48.87 | L22: 16.75 | M22: 32.12 | S22: 0.1T | T22: 32 | U22: 98 | V22: 3136 | W22: 冯海英 | X22: 聂恒光
A23: 19 | B23: 14.41 | C23: 鲁HW5201 | D23: 冯涛 | E23: 冯涛 | F23: 13456845678 | G23: 李广坤 | H23: 8905 | I23: 石子 | J23: 1--2 | K23: 46.5 | L23: 15.61 | M23: 30.89 | S23: 0.1T | T23: 30.7 | U23: 98 | V23: 3008.6 | W23: 冯海英 | X23: 聂恒光
A24: 20 | B24: 15.04 | C24: 鲁HW5588 | D24: 董令建 | E24: 董令建 | F24: 18754784567 | G24: 李广坤 | H24: 8906 | I24: 石子 | J24: 1--2 | K24: 48.97 | L24: 16.74 | M24: 32.23 | S24: 0.2T | T24: 32 | U24: 98 | V24: 3136 | W24: 冯海英 | X24: 聂恒光
A25: 21 | B25: 15.07 | C25: 鲁HJ9295 | D25: 闫广学 | E25: 闫广学 | F25: 13676376639 | G25: 李广坤 | H25: 8907 | I25: 石子 | J25: 1--2 | K25: 46.6 | L25: 14.78 | M25: 31.82 | S25: 0.1T | T25: 31.7 | U25: 98 | V25: 3106.6 | W25: 冯海英 | X25: 聂恒光
A26: 22 | B26: 15.10 | C26: 鲁H86373 | D26: 张兆群 | E26: 张兆群 | F26: 15153785444 | G26: 李广坤 | H26: 8908 | I26: 石子 | J26: 1--2 | K26: 32.42 | L26: 9.41 | M26: 23.01 | S26: 0.1T | T26: 22.9 | U26: 98 | V26: 2244.2 | W26: 侯军建 | X26: 聂恒光
A27: 23 | B27: 16.27 | C27: 鲁H36C82 | D27: 白咸青 | E27: 白咸青 | F27: 17562132680 | G27: 李广坤 | H27: 8909 | I27: 石子 | J27: 1--2 | K27: 49.59 | L27: 16.53 | M27: 33.06 | S27: 0.1T | T27: 32.9 | U27: 98 | V27: 3224.2 | W27: 侯军建 | X27: 聂恒光
A28: 24 | B28: 16.30 | C28: 鲁H55A72 | D28: 张玉尚 | E28: 张玉尚 | F28: 15998721911 | G28: 李广坤 | H28: 8910 | I28: 石子 | J28: 1--2 | K28: 49.74 | L28: 16.3 | M28: 33.44 | S28: 0.1T | T28: 33.3 | U28: 98 | V28: 3263.4 | W28: 侯军建 | X28: 聂恒光
A29: 25 | B29: 16.45 | C29: 鲁H18B13 | D29: 刘逢 | E29: 刘逢 | F29: 15263761813 | G29: 郑言克 | H29: 8911 | I29: 石子 | J29: 1--2 | K29: 48.9 | L29: 16.49 | M29: 32.41 | S29: 0.1T | T29: 32.3 | U29: 98 | V29: 3165.4 | W29: 侯军建 | X29: 聂恒光
A30: 26 | B30: 16.47 | C30: 鲁H62D98 | D30: 徐连文 | E30: 徐连文 | F30: 13562773440 | G30: 郑言克 | H30: 8912 | I30: 石子 | J30: 1--2 | K30: 49.59 | L30: 15.74 | M30: 33.85 | S30: 0.1T | T30: 33.7 | U30: 98 | V30: 3302.6 | W30: 侯军建 | X30: 聂恒光
A31: 27 | B31: 21.43 | C31: 鲁HW6711 | D31: 王长青 | E31: 王长青 | F31: 18764788000 | G31: 郑言克 | H31: 8913 | I31: 石子 | J31: 1--2 | K31: 45.84 | L31: 16.17 | M31: 29.67 | S31: 0.1T | T31: 29.5 | U31: 98 | V31: 2891 | W31: 侯军建 | X31: 聂恒光
A32: 28 | B32: 21.45 | C32: 鲁H78E87 | D32: 张庆刚 | E32: 张庆刚 | F32: 17564290789 | G32: 郑言克 | H32: 8914 | I32: 石子 | J32: 1--2 | K32: 49.16 | L32: 15.6 | M32: 33.56 | S32: 0.1T | T32: 33.4 | U32: 98 | V32: 3273.2 | W32: 侯军建 | X32: 聂恒光
A33: 29 | B33: 21.47 | C33: 鲁H96E65 | D33: 郭凯 | E33: 郭凯 | F33: 15064777797 | G33: 郑言克 | H33: 8915 | I33: 石子 | J33: 1--2 | K33: 49.27 | L33: 16.76 | M33: 32.51 | S33: 0.1T | T33: 32.4 | U33: 98 | V33: 3175.2 | W33: 侯军建 | X33: 聂恒光
A34: 30 | B34: 21.49 | C34: 鲁HG2098 | D34: 李先锋 | E34: 李先锋 | F34: 15564748507 | G34: 郑言克 | H34: 8916 | I34: 石子 | J34: 1--2 | K34: 48.28 | L34: 14.76 | M34: 33.52 | S34: 0.1T | T34: 33.4 | U34: 98 | V34: 3273.2 | W34: 侯军建 | X34: 聂恒光
A35: 31 | B35: 21.51 | C35: 鲁HG6983 | D35: 田延卫 | E35: 田延卫 | F35: 13365378599 | G35: 郑言克 | H35: 8917 | I35: 石子 | J35: 1--2 | K35: 49.78 | L35: 15.24 | M35: 34.54 | S35: 0.1T | T35: 34.4 | U35: 98 | V35: 3371.2 | W35: 侯军建 | X35: 聂恒光
B36: 合计 | M36: 0 | V36: =V5+V6+V7+V8+V9+V10+V11+V12+V13+V14+V15+V16+V17+V18+V19+V20+V21+V22+V23+V24+V25+V26+V27+V28+V29+V30+V31+V32+V33+V34+V35 -> 289635.4
B37: 备注：退货也登记，在备注中注明不合格退货，所有重量和单价、金额均以0标记

Sheet 连云港分公司
A1: 收料登记表填报 日期 2018 年 9 月 17 日 填表人 张传迎、张忠
B2: 单位：江苏大力神管桩有限公司连云港分公司
A3: 序号 | B3: 到厂时间 | C3: 送料人相关信息 | H3: 物品相关信息（参数指标等） | T3: 结算信息 | W3: 检验员 | X3: 过磅员 | Y3: 备注
B4: 时 分 | C4: 车号 | D4: 车主姓名 （客户） | E4: 司机姓名 | F4: 司机手机号 | G4: 所属车队 | H4: 入库单号 | I4: 品名 | J4: 规格 | K4: 毛重t | L4: 皮重t | M4: 净重t | N4: 含水率% | O4: 含泥量% | P4: 细度模数 | Q4: 级配区 | R4: 压碎值 | S4: 扣杂质t | T4: 结算重量 | U4: 单价 | V4: 金额
A5: 1 | B5: 07:01:00 | C5: 5855 | D5: 孙冲 | E5: 李大周 | F5: 15159740406 | G5: 孙冲 | H5: 4500 | I5: 碎石 | J5: 5~25 | K5: 76.28 | L5: 18.7 | M5: =K5-L5 -> 57.58 | O5: 0.4 | Q5: I | R5: 8.2 | S5: 0.58 | T5: =M5-S5 -> 57 | U5: 90 | W5: 张忠 | X5: 张传迎
A6: 2 | B6: 09:19:00 | C6: 0553 | D6: 孙冲 | E6: 张来高 | F6: 13775439287 | G6: 孙冲 | H6: 4501 | I6: 碎石 | J6: 5~25 | K6: 67.98 | L6: 21.02 | M6: 46.96 | O6: 0.4 | Q6: I | R6: 8.2 | S6: 0.96 | T6: 46 | U6: 90 | W6: 张忠 | X6: 张传迎
A7: 3 | B7: 09:54:00 | C7: 5855 | D7: 孙冲 | E7: 李大周 | F7: 15159740406 | G7: 孙冲 | H7: 4503 | I7: 碎石 | J7: 5~25 | K7: 75.38 | L7: 18.64 | M7: 56.74 | O7: 0.4 | Q7: I | R7: 8.2 | S7: 0.74 | T7: 56 | U7: 90 | W7: 张忠 | X7: 张传迎
A8: 4 | B8: 11:16:00 | C8: 0553 | D8: 孙冲 | E8: 张来高 | F8: 13775439287 | G8: 孙冲 | H8: 4504 | I8: 碎石 | J8: 5~25 | K8: 69.58 | L8: 20.96 | M8: 48.62 | O8: 0.4 | Q8: I | R8: 8.3 | S8: 0.62 | T8: 48 | U8: 90 | W8: 张忠 | X8: 张传迎
A9: 5 | B9: 13:47:00 | C9: 5855 | D9: 孙冲 | E9: 李大周 | F9: 15159740406 | G9: 孙冲 | H9: 4506 | I9: 碎石 | J9: 5~25 | K9: 75.62 | L9: 18.62 | M9: 57 | O9: 0.4 | Q9: I | R9: 8.2 | S9: 1 | T9: 56 | U9: 90 | W9: 张忠 | X9: 张传迎
A10: 6 | B10: 14:21:00 | C10: 0553 | D10: 孙冲 | E10: 张来高 | F10: 13775439287 | G10: 孙冲 | H10: 4507 | I10: 碎石 | J10: 5~25 | K10: 69.44 | L10: 20.94 | M10: 48.5 | O10: 0.4 | Q10: I | R10: 8.2 | S10: 0.5 | T10: 48 | U10: 90 | W10: 张忠 | X10: 张传迎
A11: 7 | B11: 15:45:00 | C11: 5855 | D11: 孙冲 | E11: 李大周 | F11: 15159740406 | G11: 孙冲 | H11: 4508 | I11: 碎石 | J11: 5~25 | K11: 78.12 | L11: 18.58 | M11: 59.54 | O11: 0.4 | Q11: I | R11: 8.2 | S11: 0.54 | T11: 59 | U11: 90 | W11: 张忠 | X11: 张传迎
A12: 8 | B12: 18:55:00 | C12: 553 | D12: 孙冲 | E12: 张来高 | F12: 13775439287 | G12: 孙冲 | H12: 4509 | I12: 碎石 | J12: 5~25 | K12: 69.86 | L12: 20.96 | M12: 48.9 | O12: 1.2 | Q12: I | R12: 8.2 | S12: 0.9 | T12: 48 | U12: 90 | W12: 张忠 | X12: 张传迎
A13: 9 | B13: 18:59:00 | C13: 5855 | D13: 孙冲 | E13: 李大周 | F13: 15159740406 | G13: 孙冲 | H13: 4510 | I13: 碎石 | J13: 5~25 | K13: 77.62 | L13: 18.54 | M13: 59.08 | O13: 1.2 | Q13: I | R13: 8.2 | S13: 1.08 | T13: 58 | U13: 90 | W13: 张忠 | X13: 张传迎
A14: 10 | B14: 19:39:00 | C14: 52076 | D14: 张成义 | E14: 朱觉云 | F14: 15189015538 | G14: 成义物流 | H14: 4511 | I14: 机制砂 | K14: 78.72 | L14: 16.84 | M14: 61.88 | N14: 9 | O14: 1.2 | P14: 2.8 | Q14: I | S14: 2.88 | T14: 59 | U14: 70 | W14: 张忠 | X14: 张传迎
A15: 11 | B15: 19:46:00 | C15: 8555 | D15: 张成义 | E15: 朱大阳 | F15: 13775412802 | G15: 成义物流 | H15: 4512 | I15: 机制砂 | K15: 85.34 | L15: 21.22 | M15: 64.12 | N15: 9 | O15: 1.2 | P15: 2.8 | Q15: I | S15: 3.12 | T15: 61 | U15: 70 | W15: 张忠 | X15: 张传迎
A16: 12 | B16: 19:48:00 | C16: 3907 | D16: 张成义 | E16: 孙阳行 | F16: 15950796322 | G16: 成义物流 | H16: 4513 | I16: 机制砂 | K16: 78 | L16: 18.1 | M16: 59.9 | N16: 9 | O16: 1.2 | P16: 2.8 | Q16: I | S16: 2.9 | T16: 57 | U16: 70 | W16: 张忠 | X16: 张传迎
A17: 13 | M17: 0 | T17: 0
A18: 14 | M18: 0 | T18: 0
A19: 15 | B19: 合计 | M19: =SUM(M5:M18) -> 668.82 | T19: =SUM(T5:T18) -> 653

Sheet 大唐混凝土
A1: 收料登记表填报 日期 2018 年 9月 17日 填表人 韩小朝
B2: 单位：江苏大唐商品混凝土有限公司
A3: 序号 | B3: 到厂时间 | C3: 送料人相关信息 | H3: 物品相关信息（参数指标等） | T3: 结算信息 | W3: 检验员 | X3: 过磅员
B4: 时 分 | C4: 车号 | D4: 车主姓名 （客户） | E4: 司机姓名 | F4: 司机手机号 | G4: 所属车队 | H4: 入库单号 | I4: 品名 | J4: 规格 | K4: 毛重t | L4: 皮重t | M4: 净重t | N4: 含水率% | O4: 含泥量% | P4: 细度模数 | Q4: 级配区 | R4: 压碎值 | S4: 扣杂质t | T4: 结算重量 | U4: 单价 | V4: 金额
A5: 1 | B5: 08:08:00 | C5: 7761 | D5: 王猛 | E5: 王猛 | F5: 13852065878 | G5: 刘保安 | H5: 041382 | I5: 砂 | K5: 58.18 | L5: 17.98 | M5: =K5-L5-S5 -> 39.4 | N5: 5.12 | O5: 2 | P5: 2.3 | S5: 0.8 | W5: 韩小朝 | X5: 曹红梅
A6: 2 | B6: 08:09:00 | C6: 333 | D6: 王伟 | E6: 王伟 | F6: 18260768111 | G6: 张江 | H6: 041383 | I6: 砂 | K6: 60.12 | L6: 18.02 | M6: 40.3 | N6: 5.6 | O6: 2.25 | P6: 2.5 | S6: 1.8 | W6: 韩小朝 | X6: 曹红梅
A7: 3 | B7: 08:16:00 | C7: 212 | D7: 娄庆生 | E7: 娄庆生 | F7: 18344889808 | G7: 庄团结 | H7: 041386 | I7: 砂 | K7: 57.62 | L7: 16.94 | M7: 39.8 | N7: 5.8 | O7: 1.5 | P7: 2.3 | S7: 0.88 | W7: 韩小朝 | X7: 曹红梅
A8: 4 | B8: 08:20:00 | C8: 225 | D8: 蒋会道 | E8: 蒋会道 | F8: 18751596100 | G8: 刘保安 | H8: 041387 | I8: 砂 | K8: 59.74 | L8: 17.7 | M8: 41.2 | N8: 5.8 | O8: 2.3 | P8: 2.5 | S8: 0.84 | W8: 韩小朝 | X8: 曹红梅
A9: 5 | B9: 08:21:00 | C9: 111 | D9: 马崇燕 | E9: 马崇燕 | F9: 18118581166 | G9: 刘保安 | H9: 041388 | I9: 砂 | K9: 58.02 | L9: 17.9 | M9: 39.3 | N9: 5.7 | O9: 2.5 | P9: 2.6 | S9: 0.82 | W9: 韩小朝 | X9: 曹红梅
A10: 6 | B10: 08:50:00 | C10: 7894 | D10: 陈辉 | E10: 陈辉 | F10: 13375498234 | G10: 陆玉峰 | H10: 041390 | I10: 砂 | K10: 54.72 | L10: 17.16 | M10: 36.8 | N10: 5.53 | O10: 1.75 | P10: 2.7 | S10: 0.76 | W10: 韩小朝 | X10: 曹红梅
A11: 7 | B11: 09:10:00 | C11: 6173 | D11: 闫东 | E11: 闫东 | F11: 13813277522 | G11: 庄团结 | H11: 041391 | I11: 砂 | K11: 57.78 | L11: 17.82 | M11: 39 | N11: 5.3 | O11: 2.6 | P11: 2.3 | S11: 0.96 | W11: 韩小朝 | X11: 曹红梅
A12: 8 | B12: 10:13:00 | C12: 123 | D12: 腾尚坤 | E12: 腾尚坤 | F12: 13813279980 | G12: 庄团结 | H12: 041392 | I12: 砂 | K12: 57.18 | L12: 17.5 | M12: 38.7 | N12: 5.6 | O12: 2.5 | P12: 2.3 | S12: 0.98 | W12: 韩小朝 | X12: 曹红梅
A13: 9 | B13: 10:24:00 | C13: 839 | D13: 庄猛 | E13: 庄汉强 | F13: 13952293221 | G13: 庄团结 | H13: 041393 | I13: 砂 | K13: 58.8 | L13: 17.86 | M13: 40 | N13: 5.2 | O13: 2.7 | P13: 2.5 | S13: 0.94 | W13: 韩小朝 | X13: 曹红梅
A14: 10 | B14: 10:25:00 | C14: 927 | D14: 庄猛 | E14: 姚佩齐 | F14: 13805221198 | G14: 庄团结 | H14: 041394 | I14: 砂 | K14: 57.98 | L14: 18.12 | M14: 39 | N14: 5.6 | O14: 2.8 | P14: 2.3 | S14: 0.86 | W14: 韩小朝 | X14: 曹红梅
A15: 11 | B15: 10:26:00 | C15: 582 | D15: 于士春 | E15: 于士春 | F15: 15312654439 | G15: 庄团结 | H15: 041395 | I15: 砂 | K15: 60.28 | L15: 18.45 | M15: 41.01 | N15: 5.8 | O15: 2.5 | P15: 2.3 | S15: 0.82 | W15: 韩小朝 | X15: 曹红梅
A16: 12 | B16: 10:45:00 | C16: 865 | D16: 顾帅 | E16: 吴峰 | F16: 18251759261 | G16: 庄团结 | H16: 041396 | I16: 砂 | K16: 60.68 | L16: 17.42 | M16: 42.36 | N16: 5.8 | O16: 2.3 | P16: 2.5 | S16: 0.9 | W16: 韩小朝 | X16: 曹红梅
A17: 13 | B17: 10:46:00 | C17: 659 | D17: 柳涛 | E17: 柳召付 | F17: 15152002008 | G17: 庄团结 | H17: 041391 | I17: 砂 | K17: 55.26 | L17: 18.44 | M17: 36 | N17: 5.2 | O17: 2.1 | P17: 2.4 | S17: 0.82 | W17: 韩小朝 | X17: 曹红梅
A18: 14 | B18: 11:12:00 | C18: 797 | D18: 李自由 | E18: 李自由 | F18: 18352222220 | G18: 杨需 | H18: 041398 | I18: 砂 | K18: 59.42 | L18: 18.12 | M18: 40.5 | N18: 5.8 | O18: 2.5 | P18: 2.3 | S18: 0.8 | W18: 韩小朝 | X18: 曹红梅
A19: 15 | B19: 11:17 | C19: 8982 | D19: 所银猛 | E19: 王旭 | F19: 15852278089 | G19: 孙艳昭 | H19: 041399 | I19: 砂 | K19: 56.38 | L19: 17.38 | M19: 38.2 | N19: 5.7 | O19: 1.25 | P19: 2.7 | S19: 0.8 | W19: 韩小朝 | X19: 曹红梅
A20: 16 | B20: 11:18:00 | C20: 039 | D20: 张凯 | E20: 曹升吉 | F20: 13913489206 | G20: 庄团结 | H20: 041400 | I20: 砂 | K20: 58.16 | L20: 17.66 | M20: 39.7 | N20: 5.4 | O20: 2.5 | P20: 2.3 | S20: 0.8 | W20: 韩小朝 | X20: 曹红梅
A21: 17 | B21: 12:05:00 | C21: 637 | D21: 薛牛牛 | E21: 伏学陆 | F21: 18860905168 | G21: 冯中生 | H21: 041406 | I21: 砂 | K21: 55.88 | L21: 17 | M21: 37.8 | N21: 5.6 | O21: 2.3 | P21: 2.37 | S21: 1.08 | W21: 韩小朝 | X21: 曹红梅
A22: 18 | B22: 12:06:00 | C22: 299 | D22: 王雷 | E22: 冯现伟 | F22: 13914866567 | G22: 冯中生 | H22: 041405 | I22: 砂 | K22: 62.18 | L22: 18.26 | M22: 43 | N22: 5.2 | O22: 2.2 | P22: 2.4 | S22: 0.92 | W22: 韩小朝 | X22: 曹红梅
A23: 19 | B23: 12:08:00 | C23: 39525 | D23: 伊振刚 | E23: 伊振刚 | F23: 15252232999 | G23: 庄团结 | H23: 041403 | I23: 砂 | K23: 59.66 | L23: 17.78 | M23: 41 | N23: 5.8 | O23: 2.6 | P23: 2.3 | S23: 0.88 | W23: 韩小朝 | X23: 曹红梅
A24: 20 | B24: 12:15:00 | C24: 591 | D24: 于鹏 | E24: 于鹏 | F24: 15152452966 | G24: 冯五 | H24: 041404 | I24: 砂 | K24: 62.82 | L24: 17.78 | M24: 44.2 | N24: 5.8 | O24: 2.3 | P24: 2.7 | S24: 0.84 | W24: 韩小朝 | X24: 曹红梅
A25: 21 | B25: 12:15:00 | C25: 585 | D25: 周西五 | E25: 周西五 | F25: 18361563368 | G25: 冯五 | H25: 041407 | I25: 砂 | K25: 62.14 | L25: 17.7 | M25: 43.6 | N25: 5.2 | O25: 2.1 | P25: 2.4 | S25: 0.84 | W25: 韩小朝 | X25: 曹红梅
A26: 22 | B26: 12:20:00 | C26: 8199 | D26: 冯伟 | E26: 冯伟 | F26: 13913460080 | G26: 冯五 | H26: 041408 | I26: 砂 | K26: 59.1 | L26: 16.78 | M26: 41.5 | N26: 5.6 | O26: 2.7 | P26: 2.3 | S26: 0.82 | W26: 韩小朝 | X26: 曹红梅
A27: 23 | B27: 12:33:00 | C27: 530 | D27: 谢龙 | E27: 马跃勇 | F27: 15866916396 | G27: 陆玉峰 | H27: 041409 | I27: 砂 | K27: 61.68 | L27: 17.12 | M27: 43.62 | N27: 5.7 | O27: 2.5 | P27: 2.7 | S27: 0.94 | W27: 韩小朝 | X27: 曹红梅
A28: 24 | B28: 12:34:00 | C28: 8133 | D28: 张团结 | E28: 朱洪柱 | F28: 15852351659 | G28: 庄团结 | H28: 0414010 | I28: 砂 | K28: 56.04 | L28: 17.04 | M28: 38.2 | N28: 5.8 | O28: 2.5 | P28: 2.3 | S28: 0.8 | W28: 韩小朝 | X28: 曹红梅
A29: 25 | B29: 12:36:00 | C29: 027 | D29: 谢海 | E29: 谢海 | F29: 13775834999 | G29: 庄团结 | H29: 041411 | I29: 砂 | K29: 62.32 | L29: 18.34 | M29: 43 | N29: 5.8 | O29: 2.5 | P29: 2.3 | S29: 0.98 | W29: 韩小朝 | X29: 曹红梅
A30: 26 | B30: 12:47:00 | C30: 006 | D30: 刘刚 | E30: 刘刚 | F30: 13805221470 | G30: 庄团结 | H30: 041412 | I30: 砂 | K30: 59.28 | L30: 17.58 | M30: 40.9 | N30: 5.9 | O30: 2.3 | P30: 2.5 | S30: 0.8 | W30: 韩小朝 | X30: 曹红梅
A31: 27 | B31: 12:48:00 | C31: 9187 | D31: 张红庆 | E31: 张红庆 | F31: 18251755988 | G31: 庄团结 | H31: 041413 | I31: 砂 | K31: 55.9 | L31: 17.42 | M31: 37.7 | N31: 5.8 | O31: 2.6 | P31: 2.3 | S31: 0.78 | W31: 韩小朝 | X31: 曹红梅
A32: 28 | B32: 13:33:00 | C32: 409 | D32: 庄猛 | E32: 庄汉兵 | F32: 13952293221 | G32: 庄团结 | H32: 041415 | I32: 砂 | K32: 61.96 | L32: 17.78 | M32: 43.3 | N32: 5.08 | O32: 2.3 | P32: 2.5 | S32: 0.88 | W32: 韩小朝 | X32: 曹红梅
A33: 29 | B33: 13:34:00 | C33: 901 | D33: 李自由 | E33: 刘乐意 | F33: 18352222688 | G33: 杨需 | H33: 041416 | I33: 砂 | K33: 57.82 | L33: 17.9 | M33: 39 | N33: 5.7 | O33: 2.7 | P33: 2.6 | S33: 0.92 | W33: 韩小朝 | X33: 曹红梅
A34: 30 | B34: 13:42:00 | C34: 071 | D34: 杜坤 | E34: 杜辉 | F34: 15062043488 | G34: 庄团结 | H34: 041418 | I34: 砂 | K34: 58.02 | L34: 17.26 | M34: 39.9 | N34: 5.7 | O34: 2.5 | P34: 2.4 | S34: 0.86 | W34: 韩小朝 | X34: 曹红梅
A35: 31 | B35: 13:43:00 | C35: 221 | D35: 汤可辉 | E35: 汤可辉 | F35: 15852068070 | G35: 孙艳昭 | H35: 041419 | I35: 砂 | K35: 57.2 | L35: 17.76 | M35: 38.6 | N35: 5.5 | O35: 2.2 | P35: 2.3 | S35: 0.84 | W35: 韩小朝 | X35: 曹红梅
A36: 32 | B36: 13:45:00 | C36: 663 | D36: 王超 | E36: 王超 | F36: 15852115399 | G36: 庄团结 | H36: 041420 | I36: 砂 | K36: 59.56 | L36: 17.68 | M36: 41.2 | N36: 5.4 | O36: 2.8 | P36: 2.5 | S36: 0.68 | W36: 韩小朝 | X36: 曹红梅
A37: 33 | B37: 13:55:00 | C37: 3937 | D37: 陆英坡 | E37: 陆英坡 | F37: 13815334019 | G37: 庄团结 | H37: 041421 | I37: 砂 | K37: 59.26 | L37: 18.04 | M37: 40.4 | N37: 5.7 | O37: 3.1 | P37: 2.6 | S37: 0.82 | W37: 韩小朝 | X37: 曹红梅
A38: 34 | B38: 14:22:00 | C38: 345 | D38: 李淑桥 | E38: 杨磊 | F38: 15996905295 | G38: 王星 | H38: 041424 | I38: 砂 | K38: 62.8 | L38: 19 | M38: 43 | N38: 5.8 | O38: 3 | P38: 2.5 | S38: 0.8 | W38: 韩小朝 | X38: 曹红梅
A39: 35 | B39: 14:58:00 | C39: 319 | D39: 庄猛 | E39: 陈丁 | F39: 15252204580 | G39: 庄团结 | H39: 041427 | I39: 砂 | K39: 57.2 | L39: 16.9 | M39: 39.5 | N39: 5.9 | O39: 3.2 | P39: 2.2 | S39: 0.8 | W39: 韩小朝 | X39: 曹红梅
A40: 36 | B40: 15:09:00 | C40: 337 | D40: 李小响 | E40: 李小响 | F40: 15952109898 | G40: 庄团结 | H40: 041430 | I40: 砂 | K40: 57.1 | L40: 18.34 | M40: 38 | N40: 6 | O40: 2.8 | P40: 2.6 | S40: 0.76 | W40: 韩小朝 | X40: 曹红梅
A41: 37 | B41: 15:25:00 | C41: 969 | D41: 任广伟 | E41: 任广伟 | F41: 15150097222 | G41: 孙艳昭 | H41: 041433 | I41: 砂 | K41: 59.1 | L41: 18.7 | M41: 39.6 | N41: 5.9 | O41: 2.7 | P41: 2.5 | S41: 0.8 | W41: 韩小朝 | X41: 曹红梅
A42: 38 | B42: 15:26:00 | C42: 581 | D42: 汤威 | E42: 汤威 | F42: 15298727655 | G42: 孙艳昭 | H42: 041434 | I42: 砂 | K42: 58.32 | L42: 17.82 | M42: 39.7 | N42: 5.8 | O42: 2.8 | P42: 2.3 | S42: 0.8 | W42: 韩小朝 | X42: 曹红梅
A43: 39 | B43: 15:30:00 | C43: 335 | D43: 庄团住 | E43: 曹帅 | F43: 15252222618 | G43: 庄团结 | H43: 041435 | I43: 砂 | K43: 57.7 | L43: 17.8 | M43: 39 | N43: 6.1 | O43: 3 | P43: 2.5 | S43: 0.9 | W43: 韩小朝 | X43: 曹红梅
A44: 40 | B44: 15:50:00 | C44: 9869 | D44: 庄团住 | E44: 张艺 | F44: 18751667588 | G44: 庄团结 | H44: 041436 | I44: 砂 | K44: 56.92 | L44: 17.18 | M44: 39 | N44: 6.2 | O44: 2.9 | P44: 2.4 | S44: 0.74 | W44: 韩小朝 | X44: 曹红梅
A45: 41 | B45: 15:55:00 | C45: 919 | D45: 姚征 | E45: 刘伟 | F45: 15852352556 | G45: 庄团结 | H45: 041437 | I45: 砂 | K45: 57.74 | L45: 18.24 | M45: 38.7 | N45: 5.2 | O45: 2.8 | P45: 2.4 | S45: 0.8 | W45: 韩小朝 | X45: 曹红梅
A46: 42 | B46: 16:00:00 | C46: 3573 | D46: 庄猛 | E46: 胡刚 | F46: 15705228073 | G46: 庄团结 | H46: 041438 | I46: 砂 | K46: 60.4 | L46: 17.76 | M46: 41.8 | N46: 5.5 | O46: 2.6 | P46: 2.3 | S46: 0.84 | W46: 韩小朝 | X46: 曹红梅
A47: 43 | B47: 17:15:00 | C47: 2903 | D47: 付强 | E47: 付强 | F47: 13852237727 | G47: 庄团结 | H47: 041441 | I47: 砂 | K47: 53.92 | L47: 16.18 | M47: 37 | N47: 5.7 | O47: 2.9 | P47: 2.3 | S47: 0.74 | W47: 韩小朝 | X47: 曹红梅
A48: 44 | B48: 17:20:00 | C48: 839 | D48: 魏涛 | E48: 魏涛 | F48: 13914832221 | G48: 庄团结 | H48: 041442 | I48: 砂 | K48: 56.48 | L48: 18.1 | M48: 37.6 | N48: 5.6 | O48: 2.5 | P48: 2.3 | S48: 0.78 | W48: 韩小朝 | X48: 曹红梅
A49: 45 | B49: 17:58:00 | C49: 797 | D49: 巩启标 | E49: 巩启标 | F49: 18115744449 | G49: 庄团结 | H49: 041443 | I49: 砂 | K49: 59.8 | L49: 17.14 | M49: 41.8 | N49: 5.3 | O49: 2.8 | P49: 2.3 | S49: 0.86 | W49: 韩小朝 | X49: 曹红梅
A50: 46 | B50: 18:03:00 | C50: 667 | D50: 索旬 | E50: 黄亮 | F50: 15252201665 | G50: 庄团结 | H50: 041444 | I50: 砂 | K50: 63 | L50: 18.48 | M50: 43.7 | N50: 5.8 | O50: 2.5 | P50: 2.7 | S50: 0.82 | W50: 韩小朝 | X50: 曹红梅
A51: 47 | B51: 18:27:00 | C51: 026 | D51: 李自由 | E51: 李自由 | F51: 18352222220 | G51: 杨需 | H51: 041445 | I51: 砂 | K51: 58.7 | L51: 18.08 | M51: 39.9 | N51: 5.2 | O51: 2.6 | P51: 2.4 | S51: 0.72 | W51: 韩小朝 | X51: 曹红梅
A52: 48 | B52: 19:22:00 | C52: 123 | D52: 藤尚峰 | E52: 藤尚峰 | F52: 13813279980 | G52: 庄团结 | H52: 041446 | I52: 砂 | K52: 55.56 | L52: 17.4 | M52: 37.3 | N52: 5.6 | O52: 2.8 | P52: 2.4 | S52: 0.86 | W52: 韩小朝 | X52: 曹红梅
A53: 49 | B53: 19:24:00 | C53: 581 | D53: 丝洋义 | E53: 丝洋义 | F53: 15190688628 | G53: 庄团结 | H53: 041447 | I53: 砂 | K53: 56.14 | L53: 16.68 | M53: 38.7 | N53: 5.6 | O53: 2.7 | P53: 2.35 | S53: 0.76 | W53: 韩小朝 | X53: 曹红梅
A54: 50 | B54: 19:30:00 | C54: 56039 | D54: 曹庆垒 | E54: 曹庆垒 | F54: 18344889808 | G54: 庄团结 | H54: 041450 | I54: 砂 | K54: 58.6 | L54: 17.64 | M54: 40.2 | N54: 5.9 | O54: 2.8 | P54: 2.5 | S54: 0.76 | W54: 韩小朝 | X54: 曹红梅
A55: 51 | B55: 19:32:00 | C55: 6173 | D55: 王雷 | E55: 冯现伟 | F55: 13914866567 | G55: 冯中生 | H55: 041452 | I55: 砂 | K55: 62.28 | L55: 17.82 | M55: 43.6 | N55: 5.8 | O55: 2.4 | P55: 2.2 | S55: 0.86 | W55: 韩小朝 | X55: 曹红梅
A56: 52 | B56: 19:44:00 | C56: 299 | D56: 曹小七 | E56: 曹小七 | F56: 13395290088 | G56: 庄团结 | H56: 041453 | I56: 砂 | K56: 65.06 | L56: 18.14 | M56: 46 | N56: 6.1 | O56: 2.2 | P56: 2.1 | S56: 0.92 | W56: 韩小朝 | X56: 曹红梅
A57: 53 | B57: 19:45:00 | C57: 039 | D57: 张凯 | E57: 曹升吉 | F57: 13913489026 | G57: 庄团结 | H57: 041454 | I57: 砂 | K57: 61.68 | L57: 17.32 | M57: 43.5 | N57: 5.7 | O57: 2.5 | P57: 2.7 | S57: 0.86 | W57: 韩小朝 | X57: 曹红梅
A58: 54 | B58: 20:04:00 | C58: 591 | D58: 于鹏 | E58: 于鹏 | F58: 15152452966 | G58: 冯五 | H58: 041456 | I58: 砂 | K58: 62.42 | L58: 17.56 | M58: 44 | N58: 5.8 | O58: 2.8 | P58: 2.3 | S58: 0.86 | W58: 韩小朝 | X58: 曹红梅
A59: 55 | B59: 20:05:00 | C59: 017 | D59: 丁玉鹏 | E59: 丁玉鹏 | F59: 13952247588 | G59: 王星 | H59: 041457 | I59: 砂 | K59: 53.9 | L59: 17.64 | M59: 35.5 | N59: 5.6 | O59: 2.5 | P59: 2.3 | S59: 0.76 | W59: 韩小朝 | X59: 曹红梅
A60: 56 | B60: 20:19:00 | C60: 39525 | D60: 尹振刚 | E60: 尹振刚 | F60: 15252232999 | G60: 庄团结 | H60: 041459 | I60: 砂 | K60: 61.58 | L60: 17.78 | M60: 43 | N60: 5.2 | O60: 2 | P60: 2.4 | S60: 0.8 | W60: 韩小朝 | X60: 曹红梅
A61: 57 | B61: 20:20:00 | C61: 0813 | D61: 胡正伟 | E61: 胡正伟 | F61: 13815386464 | G61: 高松钦 | H61: 041460 | I61: 砂 | K61: 58.48 | L61: 18.1 | M61: 39.6 | N61: 5.5 | O61: 2.6 | P61: 2.3 | S61: 0.78 | W61: 韩小朝 | X61: 曹红梅
A62: 58 | B62: 20:58:00 | C62: 865 | D62: 吴风 | E62: 吴风 | F62: 15251759151 | G62: 庄团结 | H62: 041463 | I62: 砂 | K62: 61.62 | L62: 17.56 | M62: 43.2 | N62: 5.8 | O62: 2.3 | P62: 2.8 | S62: 0.86 | W62: 韩小朝 | X62: 曹红梅
A63: 59 | B63: 21:10:00 | C63: 6291 | D63: 彭东风 | E63: 彭东风 | F63: 15952102832 | G63: 庄团结 | H63: 041469 | I63: 砂 | K63: 53.6 | L63: 16.8 | M63: 36 | N63: 5.8 | O63: 2.5 | P63: 2.6 | S63: 0.8 | W63: 韩小朝 | X63: 曹红梅
A64: 60 | B64: 21:13:00 | C64: 659 | D64: 柳涛 | E64: 柳召付 | F64: 15152002008 | G64: 庄团结 | H64: 041465 | I64: 砂 | K64: 56.26 | L64: 18.3 | M64: 37.2 | N64: 5.2 | O64: 2.6 | P64: 2.4 | S64: 0.76 | W64: 韩小朝 | X64: 曹红梅
A65: 61 | B65: 22:21:00 | C65: 789 | D65: 王超 | E65: 王超 | F65: 15862122061 | G65: 高松钦 | H65: 041474 | I65: 砂 | K65: 63.7 | L65: 18.58 | M65: 44.3 | N65: 5.9 | O65: 2.6 | P65: 2.3 | S65: 0.82 | W65: 韩小朝 | X65: 曹红梅
A66: 62 | B66: 22:23:00 | C66: 221 | D66: 袁大辉 | E66: 袁大辉 | F66: 18762207002 | G66: 孙艳昭 | H66: 041475 | I66: 砂 | K66: 60.46 | L66: 17.68 | M66: 41.9 | N66: 5.2 | O66: 2.6 | P66: 2.4 | S66: 0.88 | W66: 韩小朝 | X66: 曹红梅
A67: 63 | B67: 22:25:00 | C67: 238 | D67: 朱强 | E67: 周志刚 | F67: 13913481234 | G67: 庄团结 | H67: 041476 | I67: 砂 | K67: 55.42 | L67: 17.5 | M67: 37 | N67: 5.1 | O67: 2.2 | P67: 2.5 | S67: 0.92 | W67: 韩小朝 | X67: 曹红梅
A68: 64 | B68: 22:31:00 | C68: 8999 | D68: 吴全现 | E68: 吴全现 | F68: 15252225688 | G68: 刘保安 | H68: 041478 | I68: 砂 | K68: 59.58 | L68: 18 | M68: 40.8 | N68: 5.7 | O68: 2.5 | P68: 2.7 | S68: 0.78 | W68: 韩小朝 | X68: 曹红梅
A69: 65 | B69: 22:34:00 | C69: 689 | D69: 徐勤猛 | E69: 徐勤猛 | F69: 18264969222 | G69: 孙艳昭 | H69: 041479 | I69: 砂 | K69: 63.12 | L69: 20.46 | M69: =K69-L69-S69 -> 41.98 | N69: 5.7 | O69: 2.3 | P69: 2.3 | S69: 0.68 | W69: 韩小朝 | X69: 曹红梅
A70: 66 | B70: 22:58:00 | C70: 8133 | D70: 张磊 | E70: 张磊 | F70: 13952250234 | G70: 庄团结 | H70: 041480 | I70: 砂 | K70: 54.94 | L70: 16.94 | M70: 37 | N70: 6.8 | O70: 2.5 | P70: 2.3 | S70: 1 | W70: 韩小朝 | X70: 曹红梅
A71: 67 | B71: 23:08:00 | C71: 728 | D71: 王法业 | E71: 李瑞 | F71: 15050083936 | G71: 陆玉峰 | H71: 041481 | I71: 砂 | K71: 62.38 | L71: 17.38 | M71: 44.2 | N71: 5.3 | O71: 2.4 | P71: 2.3 | S71: 0.8 | W71: 韩小朝 | X71: 曹红梅
A72: 68 | B72: 23:10:00 | C72: 9187 | D72: 谢敏 | E72: 谢敏 | F72: 13775834999 | G72: 庄团结 | H72: 041482 | I72: 砂 | K72: 55.26 | L72: 17.02 | M72: 37.5 | N72: 5.8 | O72: 2.5 | P72: 2.7 | S72: 0.74 | W72: 韩小朝 | X72: 曹红梅
A73: 69 | B73: 23:12:00 | C73: 345 | D73: 李淑桥 | E73: 杨磊 | F73: 15996905295 | G73: 王星 | H73: 041483 | I73: 砂 | K73: 61 | L73: 18.98 | M73: 41.2 | N73: 5.2 | O73: 2.6 | P73: 2.4 | S73: 0.82 | W73: 韩小朝 | X73: 曹红梅
A74: 70 | B74: 02:10:00 | C74: 601 | D74: 黄明克 | E74: 黄志军 | F74: 17751925879 | G74: 刘保安 | H74: 041487 | I74: 砂 | K74: 58.74 | L74: 18.18 | M74: 39.7 | N74: 5.6 | O74: 2.25 | P74: 2.4 | S74: 0.86 | W74: 韩小朝 | X74: 曹红梅
A75: 71 | B75: 02:12:00 | C75: 839 | D75: 魏涛 | E75: 魏涛 | F75: 13914832221 | G75: 庄团结 | H75: 041488 | I75: 砂 | K75: 66.36 | L75: 18.04 | M75: 47.4 | N75: 5.6 | O75: 2 | P75: 2.35 | S75: 0.92 | W75: 韩小朝 | X75: 曹红梅
A76: 72 | B76: 02:13:00 | C76: 929 | D76: 蒋会道 | E76: 蒋会道 | F76: 18751596100 | G76: 刘保安 | H76: 041489 | I76: 砂 | K76: 60.64 | L76: 18.08 | M76: 41.7 | N76: 5.9 | O76: 1.8 | P76: 2.5 | S76: 0.86 | W76: 韩小朝 | X76: 曹红梅
A77: 73 | B77: 02:22:00 | C77: 111 | D77: 马崇燕 | E77: 马崇燕 | F77: 18118581166 | G77: 刘保安 | H77: 041490 | I77: 砂 | K77: 59.44 | L77: 17.72 | M77: 40.9 | N77: 5.3 | O77: 2.5 | P77: 2.3 | S77: 0.82 | W77: 韩小朝 | X77: 曹红梅
A78: 74 | B78: 02:24:00 | C78: 225 | D78: 冯方雷 | E78: 冯方雷 | F78: 13721760489 | G78: 刘保安 | H78: 041491 | I78: 砂 | K78: 58.2 | L78: 17.2 | M78: 40.18 | N78: 5.7 | O78: 2.5 | P78: 2.7 | S78: 0.82 | W78: 韩小朝 | X78: 曹红梅
A79: 75 | B79: 02:26:00 | C79: 7761 | D79: 吴迪 | E79: 吴迪 | F79: 13775931858 | G79: 刘保安 | H79: 041492 | I79: 砂 | K79: 58.38 | L79: 17.66 | M79: 40 | N79: 5.9 | O79: 2 | P79: 2.36 | S79: 0.72 | W79: 韩小朝 | X79: 曹红梅
A80: 76 | B80: 05:36:00 | C80: 561 | D80: 冯伟 | E80: 冯伟 | F80: 15366790444 | G80: 刘保安 | H80: 041500 | I80: 砂 | K80: 59.74 | L80: 17.42 | M80: 41.4 | N80: 6 | O80: 2.5 | P80: 2.89 | S80: 0.92 | W80: 韩小朝 | X80: 曹红梅
A81: 77 | B81: 05:38:00 | C81: 079 | D81: 所银猛 | E81: 王旭 | F81: 15852278089 | G81: 孙艳昭 | H81: 041501 | I81: 砂 | K81: 59.62 | L81: 18.26 | M81: 40.5 | N81: 5.9 | O81: 2 | P81: 2.33 | S81: 0.86 | W81: 韩小朝 | X81: 曹红梅
A82: 78 | B82: 05:39:00 | C82: 625 | D82: 胡元震 | E82: 胡元震 | F82: 15063211121 | G82: 庄团结 | H82: 041503 | I82: 砂 | K82: 58.28 | L82: 18.76 | M82: 38.7 | N82: 5.8 | O82: 2.25 | P82: 2.3 | S82: 0.82 | W82: 韩小朝 | X82: 曹红梅
A83: 79 | B83: 05:40:00 | C83: 971 | D83: 武加军 | E83: 武加军 | F83: 15371600099 | G83: 庄团结 | H83: 041504 | I83: 砂 | K83: 58.4 | L83: 19.1 | M83: 38.5 | N83: 5.6 | O83: 2.6 | P83: 2.4 | S83: 0.8 | W83: 韩小朝 | X83: 曹红梅
A84: 80 | B84: 06:24:00 | C84: 788 | D84: 朱洪柱 | E84: 朱洪柱 | F84: 15852351659 | G84: 庄团结 | H84: 041513 | I84: 砂 | K84: 55.16 | L84: 16.34 | M84: 38 | N84: 5.6 | O84: 1.75 | P84: 2.4 | S84: 0.82 | W84: 韩小朝 | X84: 曹红梅
A85: 81 | B85: 06:43:00 | C85: 630 | D85: 杜艳吉 | E85: 杜艳吉 | F85: 13811078925 | G85: 庄团结 | H85: 041515 | I85: 砂 | K85: 55.86 | L85: 17.94 | M85: 37.4 | N85: 5.6 | O85: 2 | P85: 2.35 | S85: 0.52 | W85: 韩小朝 | X85: 曹红梅
A86: 82 | B86: 06:51:00 | C86: 646 | D86: 葛友飞 | E86: 葛友飞 | F86: 18020544660 | G86: 庄团结 | H86: 041518 | I86: 砂 | K86: 55 | L86: 16.62 | M86: 37.6 | N86: 5.9 | O86: 2.6 | P86: 2.5 | S86: 0.78 | W86: 韩小朝 | X86: 曹红梅
A87: 83 | B87: 07:19:00 | C87: 031 | D87: 解涛 | E87: 解涛 | F87: 18114159891 | G87: 刘保安 | H87: 041520 | I87: 砂 | K87: 61.2 | L87: 20.24 | M87: 40.2 | N87: 5.1 | O87: 2.2 | P87: 2.5 | S87: 0.76 | W87: 韩小朝 | X87: 曹红梅
A88: 84 | B88: 07:22:00 | C88: 727 | D88: 解涛 | E88: 梁苏伟 | F88: 13372234474 | G88: 刘保安 | H88: 041521 | I88: 砂 | K88: 63 | L88: 20.62 | M88: 41.5 | N88: 5.7 | O88: 2.3 | P88: 2.7 | S88: 0.88 | W88: 韩小朝 | X88: 曹红梅
A89: 85 | B89: 07:24:00 | C89: 869 | D89: 许洪卫 | E89: 许洪卫 | F89: 15152018555 | G89: 庄团结 | H89: 041522 | I89: 砂 | K89: 57.54 | L89: 16.84 | M89: 39.9 | N89: 5.7 | O89: 2.5 | P89: 2.3 | S89: 0.8 | W89: 韩小朝 | X89: 曹红梅
A90: 86 | B90: 08:10:00 | C90: 000 | D90: 王星 | E90: 魏星义 | F90: 15298726266 | G90: 王星 | H90: 041384 | I90: 石子 | J90: 1-2 | K90: 72.14 | L90: 19.96 | M90: 50.5 | S90: 1.68 | W90: 韩小朝 | X90: 曹红梅
A91: 87 | B91: 08:12:00 | C91: 850 | D91: 陈良宝 | E91: 陈良宝 | F91: 15396842499 | G91: 孙艳昭 | H91: 041385 | I91: 石子 | J91: 1-5 | K91: 48.48 | L91: 15.98 | M91: 32 | S91: 0.5 | W91: 韩小朝 | X91: 曹红梅
A92: 88 | B92: 14:09:00 | C92: 850 | D92: 陈良宝 | E92: 陈良宝 | F92: 15396842499 | G92: 孙艳昭 | H92: 041422 | I92: 石子 | J92: 1-5 | K92: 50.24 | L92: 15.98 | M92: 33.7 | S92: 0.56 | W92: 韩小朝 | X92: 曹红梅
A93: 89 | B93: 14:10:00 | C93: 440 | D93: 董建伟 | E93: 董建胜 | F93: 18344884456 | G93: 孙艳昭 | H93: 041423 | I93: 石子 | J93: 1-2 | K93: 63.34 | L93: 17.62 | M93: 45.18 | S93: 0.54 | W93: 韩小朝 | X93: 曹红梅
A94: 90 | B94: 14:24:00 | C94: 821 | D94: 王飞 | E94: 王飞 | F94: 13852238516 | G94: 孙艳昭 | H94: 041425 | I94: 石子 | J94: 1-5 | K94: 59.86 | L94: 17.36 | M94: 41.9 | S94: 0.6 | W94: 韩小朝 | X94: 曹红梅
A95: 91 | B95: 15:00:00 | C95: 188 | D95: 汤可辉 | E95: 汤可辉 | F95: 15852068070 | G95: 孙艳昭 | H95: 041428 | I95: 石子 | J95: 1-5 | K95: 56.48 | L95: 18.44 | M95: 37.5 | S95: 0.54 | W95: 韩小朝 | X95: 曹红梅
A96: 92 | B96: 15:01:00 | C96: 507 | D96: 任广伟 | E96: 任广伟 | F96: 15150097222 | G96: 孙艳昭 | H96: 041429 | I96: 石子 | J96: 1-5 | K96: 48.92 | L96: 19.84 | M96: 28.6 | S96: 0.48 | W96: 韩小朝 | X96: 曹红梅
A97: 93 | B97: 15:05:00 | C97: 836 | D97: 所银猛 | E97: 王旭 | F97: 15852278089 | G97: 孙艳昭 | H97: 041431 | I97: 石子 | J97: 1-5 | K97: 47.26 | L97: 17.72 | M97: 29 | S97: 0.54 | W97: 韩小朝 | X97: 曹红梅
A98: 94 | B98: 15:07:00 | C98: 502 | D98: 韩红 | E98: 刘辉 | F98: 18532853966 | G98: 孙艳昭 | H98: 041432 | I98: 石子 | J98: 1-5 | K98: 49.56 | L98: 18.52 | M98: 30.6 | S98: 0.44 | W98: 韩小朝 | X98: 曹红梅
A99: 95 | B99: 19:25:00 | C99: 867 | D99: 高松钦 | E99: 娄群 | F99: 18205220109 | G99: 高松钦 | H99: 041448 | I99: 石子 | J99: 1-2 | K99: 64.48 | L99: 20.1 | M99: 43.8 | S99: 0.58 | W99: 韩小朝 | X99: 曹红梅
A100: 96 | B100: 19:26:00 | C100: 833 | D100: 毛福祥 | E100: 彭大强 | F100: 13347956755 | G100: 毛福祥 | H100: 041449 | I100: 石子 | J100: 1-2 | K100: 65.62 | L100: 19.72 | M100: 45.3 | S100: 0.6 | W100: 韩小朝 | X100: 曹红梅
A101: 97 | B101: 19:35:00 | C101: 277 | D101: 高松钦 | E101: 刘军 | F101: 15162007296 | G101: 高松钦 | H101: 041451 | I101: 石子 | J101: 1-2 | K101: 63.88 | L101: 19.9 | M101: 43.5 | S101: 0.48 | W101: 韩小朝 | X101: 曹红梅
A102: 98 | B102: 23:51:00 | C102: 277 | D102: 高松钦 | E102: 刘军 | F102: 15162007296 | G102: 高松钦 | H102: 041484 | I102: 石子 | J102: 1-2 | K102: 55.06 | L102: 18.66 | M102: 36 | S102: 0.4 | W102: 韩小朝 | X102: 曹红梅
A103: 99 | B103: 23:55:00 | C103: 867 | D103: 高松钦 | E103: 娄群 | F103: 18205220109 | G103: 高松钦 | H103: 041485 | I103: 石子 | J103: 1-2 | K103: 56.34 | L103: 19.94 | M103: 36 | S103: 0.4 | W103: 韩小朝 | X103: 曹红梅
A104: 100 | B104: 05:35:00 | C104: 833 | D104: 毛福祥 | E104: 彭大强 | F104: 13347956755 | G104: 毛福祥 | H104: 041499 | I104: 石子 | J104: 1-5 | K104: 65.18 | L104: 19.62 | M104: 44.9 | S104: 0.66 | W104: 韩小朝 | X104: 曹红梅
A105: 101 | B105: 05:40:00 | C105: 277 | D105: 高松钦 | E105: 刘军 | F105: 15162007296 | G105: 高松钦 | H105: 041502 | I105: 石子 | J105: 1-2 | K105: 64.64 | L105: 19.74 | M105: 44.4 | S105: 0.5 | W105: 韩小朝 | X105: 曹红梅
A106: 102 | B106: 05:55:00 | C106: 790 | D106: 刘专 | E106: 潘珍君 | F106: 18068483819 | G106: 毛福祥 | H106: 041506 | I106: 石子 | J106: 1-5 | K106: 66.16 | L106: 20.14 | M106: 45.3 | S106: 0.72 | W106: 韩小朝 | X106: 曹红梅
A107: 103 | B107: 06:00:00 | C107: 367 | D107: 高松钦 | E107: 刘纯纯 | F107: 18751672899 | G107: 高松钦 | H107: 041508 | I107: 石子 | J107: 1-2 | K107: 68.94 | L107: 18.92 | M107: 49.4 | S107: 0.62 | W107: 韩小朝 | X107: 曹红梅
A108: 104 | B108: 06:02:00 | C108: 199 | D108: 常明其 | E108: 常团结 | F108: 18353930809 | G108: 孙艳昭 | H108: 041509 | I108: 石子 | J108: 1-5 | K108: 62.64 | L108: 17.22 | M108: 44.44 | S108: 0.98 | W108: 韩小朝 | X108: 曹红梅
A109: 105 | B109: 06:20:00 | C109: 791 | D109: 常明华 | E109: 常明华 | F109: 18853959078 | G109: 孙艳昭 | H109: 041511 | I109: 石子 | J109: 1-5 | K109: 63.52 | L109: 17.14 | M109: 45.6 | S109: 0.78 | W109: 韩小朝 | X109: 曹红梅
A110: 106 | B110: 06:22:00 | C110: 122 | D110: 李彬 | E110: 李彬 | F110: 18205393166 | G110: 孙艳昭 | H110: 041512 | I110: 石子 | J110: 1-5 | K110: 66.44 | L110: 19.02 | M110: 46.7 | S110: 0.72 | W110: 韩小朝 | X110: 曹红梅
A111: 107 | B111: 07:00:00 | C111: 065 | D111: 赵庆祥 | E111: 赵庆祥 | F111: 15052237666 | G111: 孙艳昭 | H111: 041516 | I111: 石子 | J111: 1-5 | K111: 62.68 | L111: 16.62 | M111: 45.3 | S111: 0.76 | W111: 韩小朝 | X111: 曹红梅
A112: 108 | B112: 07:02:00 | C112: 523 | D112: 许升东 | E112: 许升东 | F112: 17866688786 | G112: 孙艳昭 | H112: 041517 | I112: 石子 | J112: 1-5 | K112: 64.52 | L112: 17.14 | M112: 46.3 | S112: 1.08 | W112: 韩小朝 | X112: 曹红梅
A113: 109 | B113: 07:25:00 | C113: 821 | D113: 许金 | E113: 刘贺 | F113: 15351699115 | G113: 孙艳昭 | H113: 041523 | I113: 石子 | J113: 1-5 | K113: 61.28 | L113: 17.42 | M113: 43.2 | S113: 0.66 | W113: 韩小朝 | X113: 曹红梅
M114: 0
M115: 0
M116: 0
M117: 0
M118: 0
B119: 合计 | M119: 0
B120: 备注：退货也登记，在备注中注明不合格退货，所有重量和单价、金额均以0标记
